bitfinex/quotes_SOLUSD_20250212
["timestamp","ask_amount","ask_price","bid_price","bid_amount"]
[1739330446198,15.85149913,195.33,195.31,0.50196]
[1739330446917,15.85149913,195.34,195.31,0.50196]
[1739330447319,15.85149913,195.35,195.34,0.25098]
[1739330447521,15.85149913,195.36,195.34,0.37647]
[1739330447822,6.3683,195.39,195.35,0.12549]
[1739330448002,4.6064,195.38,195.35,0.12549]
[1739330448610,15.85149913,195.36,195.35,0.12549]
[1739330448794,15.85149913,195.36,195.35,0.50196]
[1739330450003,15.85149913,195.36,195.35,13.91380853]
[1739330451335,15.85149913,195.36,195.35,0.25098]
[1739330451625,20.45829913,195.36,195.35,0.25098]
[1739330453445,15.85149913,195.36,195.35,0.25098]
[1739330454021,15.85149913,195.36,195.35,0.37647]
[1739330454325,15.85149913,195.38,195.37,0.25098]
[1739330454830,15.35149913,195.38,195.37,0.25098]
[1739330455199,15.35149913,195.38,195.37,0.50196]
[1739330456236,19.95789913,195.38,195.37,0.12549]
[1739330457330,19.95789913,195.38,195.33,13.78831853]
[1739330457518,15.85149913,195.34,195.33,13.78831853]
[1739330458336,15.85149913,195.34,195.33,13.91380853]
[1739330458533,15.85149913,195.35,195.34,0.12549]
[1739330459039,15.85149913,195.35,195.27,17.15091301]
[1739330459223,15.85149913,195.32,195.26,8.1202]
[1739330459412,15.85149913,195.29,195.23,15.85149913]
[1739330459730,15.85149913,195.31,195.28,0.50196]
[1739330460230,15.85149913,195.33,195.31,0.25098]
[1739330460405,20.45909913,195.33,195.32,0.12549]
[1739330461231,15.85149913,195.33,195.32,0.12549]
[1739330462728,11.5455,195.39,195.32,0.50196]
[1739330462921,15.85149913,195.37,195.35,0.25098]
[1739330463109,15.85149913,195.38,195.37,0.12549]
[1739330464829,20.45789913,195.38,195.37,0.12549]
[1739330465623,15.85149913,195.38,195.37,0.50196]
[1739330465825,0.03,195.39,195.38,13.91380853]
[1739330466138,0.03,195.39,195.38,29.76530766]
[1739330466320,4.6051,195.44,195.43,0.12549]
[1739330466638,15.85149913,195.44,195.43,0.12549]
[1739330466941,20.45619913,195.45,195.43,0.12549]
[1739330467438,15.85149913,195.44,195.43,0.12549]
[1739330467622,15.85149913,195.44,195.33,15.85149913]
[1739330467822,15.85149913,195.4,195.36,20.0]
[1739330468033,15.85149913,195.43,195.37,29.76530766]
[1739330468252,15.85149913,195.44,195.39,0.50196]
[1739330468425,15.85149913,195.43,195.39,0.50196]
[1739330468941,20.45669913,195.43,195.39,0.50196]
[1739330469441,15.85149913,195.42,195.39,0.50196]
[1739330469645,15.85149913,195.41,195.39,0.50196]
[1739330469937,15.85149913,195.41,195.39,0.37647]
[1739330470146,15.85149913,195.4,195.36,13.41184853]
[1739330470443,4.6052,195.43,195.34,29.76530766]
[1739330470444,15.85149913,195.41,195.34,29.76530766]
[1739330470633,4.6049,195.45,195.42,0.12549]
[1739330471739,15.85149913,195.45,195.43,0.12549]
[1739330472034,1.0,195.55,195.43,0.12549]
[1739330472035,15.85149913,195.52,195.49,0.12549]
[1739330472242,15.85149913,195.53,195.49,0.12549]
[1739330472823,15.85149913,195.54,195.49,0.12549]
[1739330473144,4.6323,195.56,195.52,0.12549]
[1739330473145,15.85149913,195.55,195.52,0.12549]
[1739330473445,15.85149913,195.54,195.52,0.12549]
[1739330474726,20.45409913,195.54,195.52,0.12549]
[1739330475728,15.85149913,195.54,195.52,0.12549]
[1739330476245,20.45399913,195.55,195.52,0.12549]
[1739330477130,15.88149913,195.56,195.54,0.12549]
[1739330477445,15.85149913,195.55,195.54,0.12549]
[1739330477755,15.85149913,195.55,195.47,21.96069913]
[1739330477931,15.85149913,195.53,195.48,13.91380853]
[1739330478134,15.85149913,195.54,195.48,29.76530766]
[1739330478749,15.85149913,195.52,195.48,13.91380853]
[1739330478925,15.85149913,195.51,195.48,13.91380853]
[1739330479125,4.6035,195.5,195.48,13.91380853]
[1739330479759,4.6035,195.5,195.45,15.85149913]
[1739330479760,15.85149913,195.49,195.42,21.96069913]
[1739330479937,15.85149913,195.47,195.42,6.1092]
[1739330480257,15.85149913,195.47,195.43,13.91380853]
[1739330480440,15.85149913,195.48,195.43,13.91380853]
[1739330480964,15.85149913,195.45,195.43,13.91380853]
[1739330481138,15.85149913,195.45,195.43,0.50196]
[1739330481139,15.85149913,195.44,195.43,0.50196]
[1739330482048,15.85149913,195.44,195.37,6.1092]
[1739330482229,4.6049,195.45,195.36,1.6242]
[1739330482230,15.85149913,195.41,195.36,1.6242]
[1739330482545,15.85149913,195.4,195.37,13.66282853]
[1739330482751,15.85149913,195.4,195.39,0.25098]
[1739330482930,15.85149913,195.41,195.4,0.25098]
[1739330483137,4.6059,195.4,195.34,15.85149913]
[1739330483327,20.45739913,195.4,195.35,13.91380853]
[1739330483762,15.85149913,195.36,195.32,0.063]
[1739330483929,15.85149913,195.34,195.32,0.063]
[1739330484130,15.85149913,195.34,195.33,0.37647]
[1739330484331,15.85149913,195.35,195.34,0.12549]
[1739330484733,15.85149913,195.35,195.34,0.50196]
[1739330485144,15.85149913,195.35,195.34,0.37647]
[1739330485331,20.45859913,195.35,195.34,0.37647]
[1739330486229,20.45859913,195.35,195.34,0.12549]
[1739330486951,15.85149913,195.35,195.34,0.12549]
[1739330487148,15.85149913,195.36,195.33,0.25098]
[1739330487350,15.85149913,195.36,195.33,0.37647]
[1739330487351,15.85149913,195.35,195.33,0.37647]
[1739330487551,15.85149913,195.36,195.33,0.37647]
[1739330487755,15.85149913,195.39,195.38,0.12549]
[1739330487940,15.85149913,195.4,195.38,0.12549]
[1739330488135,20.45689913,195.42,195.39,0.37647]
[1739330488334,15.85149913,195.42,195.39,0.37647]
[1739330489463,20.45709913,195.42,195.39,0.37647]
[1739330489872,15.85149913,195.43,195.42,0.12549]
[1739330490568,15.85149913,195.46,195.43,0.37647]
[1739330490871,4.604,195.48,195.45,0.25098]
[1739330491176,20.45549913,195.48,195.45,0.25098]
[1739330491744,15.85149913,195.47,195.45,0.25098]
[1739330492138,15.85149913,195.46,195.45,0.25098]
[1739330492451,15.85149913,195.46,195.45,0.37647]
[1739330493498,20.45599913,195.46,195.37,23.87919913]
[1739330493647,15.85149913,195.43,195.38,0.37647]
[1739330493856,15.85149913,195.44,195.38,29.76530766]
[1739330494050,20.45599913,195.46,195.4,13.91380853]
[1739330494234,15.85149913,195.48,195.46,0.12549]
[1739330494639,15.85149913,195.5,195.47,0.50196]
[1739330496696,20.45509913,195.5,195.47,0.50196]
[1739330497589,29.77148455,195.5,195.47,0.50196]
[1739330498295,25.16788455,195.49,195.47,0.50196]
[1739330499466,25.16788455,195.5,195.47,0.50196]
[1739330499792,25.16788455,195.49,195.47,0.50196]
[1739330500169,29.77168455,195.49,195.47,0.50196]
[1739330500385,25.16788455,195.49,195.47,0.50196]
[1739330501168,29.77168455,195.49,195.47,0.50196]
[1739330501597,25.16788455,195.49,195.47,0.50196]
[1739330503705,29.77168455,195.49,195.47,0.50196]
[1739330503872,29.80168455,195.49,195.47,0.50196]
[1739330504074,25.19788455,195.49,195.47,0.50196]
[1739330509307,25.16788455,195.48,195.47,0.50196]
[1739330509799,25.19788455,195.49,195.47,0.50196]
[1739330510191,0.03,195.49,195.47,0.50196]
[1739330510804,0.03,195.49,195.48,0.50196]
[1739330511015,0.03,195.49,195.48,13.91380853]
[1739330511303,0.03,195.49,195.48,0.37647]
[1739330511304,25.19788455,195.49,195.48,0.37647]
[1739330511806,25.19788455,195.49,195.4,25.16788455]
[1739330511989,25.16788455,195.43,195.39,0.063]
[1739330512404,25.16788455,195.44,195.4,20.0]
[1739330512713,25.16788455,195.44,195.41,13.91380853]
[1739330513100,25.16788455,195.45,195.41,13.91380853]
[1739330513409,25.16788455,195.48,195.41,39.08169308]
[1739330513787,25.19788455,195.49,195.43,13.91380853]
[1739330513991,0.03,195.49,195.45,13.91380853]
[1739330514207,0.03,195.49,195.48,13.78831853]
[1739330514815,0.03,195.49,195.48,13.91380853]
[1739330515704,0.03,195.49,195.48,39.08169308]
[1739330517084,0.03,195.49,195.48,13.91380853]
[1739330522428,0.03,195.54,195.51,0.50196]
[1739330522630,0.03,195.54,195.53,13.91380853]
[1739330524810,0.03,195.54,195.53,29.63762996]
[1739330525238,0.03,195.54,195.53,34.75192996]
[1739330525410,0.03,195.54,195.53,35.51871633]
[1739330525817,0.03,195.56,195.55,13.91380853]
[1739330526014,0.03,195.56,195.55,29.63762996]
[1739330526227,0.03,195.56,195.55,34.75132996]
[1739330527638,0.03,195.56,195.55,44.15350784]
[1739330528137,0.03,195.56,195.55,39.03980784]
[1739330528333,0.03,195.56,195.55,13.91380853]
[1739330529524,0.03,195.56,195.55,15.21392002]
[1739330530442,0.03,195.56,195.55,40.33991933]
[1739330530821,0.03,195.56,195.55,39.03980784]
[1739330531023,0.03,195.56,195.55,13.91380853]
[1739330531441,25.15599931,195.56,195.55,0.50196]
[1739330532445,0.03,195.56,195.55,0.50196]
[1739330533138,29.75809931,195.56,195.55,0.50196]
[1739330533335,29.75809931,195.56,195.49,76.68398716]
[1739330533534,25.12599931,195.52,195.49,70.15808716]
[1739330533737,25.12599931,195.51,195.5,13.91380853]
[1739330534043,25.12599931,195.51,195.5,0.50196]
[1739330534243,25.12599931,195.51,195.5,0.37647]
[1739330534850,25.12599931,195.51,195.5,0.12549]
[1739330536529,4.6035,195.5,195.49,70.15808716]
[1739330536726,25.12599931,195.5,195.49,70.15808716]
[1739330537552,25.12599931,195.53,195.5,0.12549]
[1739330537854,25.15599931,195.56,195.52,0.12549]
[1739330538567,25.15599931,195.56,195.53,0.12549]
[1739330538726,0.03,195.56,195.55,0.12549]
[1739330538923,0.03,195.56,195.55,13.91380853]
[1739330539125,0.03,195.56,195.55,39.03980784]
[1739330540338,0.03,195.56,195.55,39.80662816]
[1739330540546,0.03,195.56,195.55,44.92032816]
[1739330541053,0.03,195.63,195.62,20.0]
[1739330541258,0.03,195.63,195.62,59.03980784]
[1739330547165,0.03,195.63,195.62,33.91380853]
[1739330549655,0.03,195.63,195.62,59.03980784]
[1739330551368,0.03,195.63,195.58,31.72819931]
[1739330551851,0.03,195.63,195.62,13.91380853]
[1739330552051,0.03,195.63,195.62,39.03980784]
[1739330554582,0.03,195.63,195.62,45.80940784]
[1739330554767,0.03,195.69,195.68,39.03980784]
[1739330556159,0.03,195.69,195.68,13.91380853]
[1739330557973,0.03,195.69,195.68,0.50196]
[1739330559786,0.03,195.69,195.68,33.91380853]
[1739330560791,15.725314,195.69,195.68,0.50196]
[1739330561281,0.03,195.69,195.68,0.50196]
[1739330562290,15.725314,195.69,195.62,17.353014]
[1739330562496,15.695314,195.67,195.62,1.6577]
[1739330562796,15.195314,195.67,195.62,13.91380853]
[1739330563389,15.695314,195.66,195.62,13.91380853]
[1739330563691,15.695314,195.67,195.62,13.91380853]
[1739330563874,15.695314,195.66,195.62,13.91380853]
[1739330564193,15.695314,195.65,195.62,13.91380853]
[1739330565194,20.295314,195.65,195.62,0.50196]
[1739330565385,15.695314,195.63,195.56,15.695314]
[1739330565585,15.695314,195.62,195.56,0.063]
[1739330565787,15.695314,195.63,195.56,29.67212253]
[1739330565990,15.695314,195.63,195.6,0.50196]
[1739330566191,15.695314,195.64,195.6,0.50196]
[1739330566369,0.03,195.67,195.62,0.50196]
[1739330566570,0.03,195.67,195.65,0.12549]
[1739330570499,25.11912568,195.66,195.63,20.0]
[1739330571001,25.14912568,195.67,195.64,0.37647]
[1739330572385,29.74872568,195.67,195.64,0.37647]
[1739330572565,25.11912568,195.66,195.64,0.37647]
[1739330573478,25.11912568,195.65,195.6,20.0]
[1739330573677,25.11912568,195.63,195.6,20.0]
[1739330573880,25.11912568,195.63,195.61,0.50196]
[1739330575192,25.11912568,195.64,195.61,13.91380853]
[1739330575895,25.11912568,195.63,195.61,0.25098]
[1739330576097,25.11912568,195.62,195.61,0.25098]
[1739330577181,29.71982568,195.62,195.61,0.25098]
[1739330577700,29.71982568,195.62,195.56,0.063]
[1739330577872,25.11912568,195.57,195.56,0.063]
[1739330578071,25.11912568,195.57,195.56,0.18849]
[1739330580281,29.72102568,195.57,195.56,0.063]
[1739330582201,25.11912568,195.57,195.56,0.063]
[1739330582584,25.11912568,195.57,195.56,0.18849]
[1739330582979,25.11912568,195.58,195.57,0.12549]
[1739330583378,25.11912568,195.58,195.57,0.25098]
[1739330583581,25.11912568,195.59,195.57,0.25098]
[1739330583896,25.11912568,195.61,195.59,0.12549]
[1739330584093,25.11912568,195.6,195.59,0.12549]
[1739330586401,25.11912568,195.61,195.59,0.12549]
[1739330587909,25.11912568,195.6,195.59,0.12549]
[1739330588410,25.11912568,195.6,195.56,0.063]
[1739330588710,25.11912568,195.58,195.57,0.50196]
[1739330589201,25.11912568,195.58,195.57,0.12549]
[1739330589403,25.11912568,195.58,195.56,0.063]
[1739330589617,25.11912568,195.57,195.56,0.063]
[1739330589782,29.72102568,195.57,195.56,0.063]
[1739330590579,25.11912568,195.57,195.56,0.063]
[1739330591202,25.11912568,195.59,195.57,0.12549]
[1739330591405,25.11912568,195.6,195.57,0.25098]
[1739330591703,15.71330561,195.6,195.57,0.25098]
[1739330591887,15.71330561,195.6,195.57,0.12549]
[1739330592094,15.71330561,195.61,195.59,0.12549]
[1739330592297,15.71330561,195.63,195.61,0.12549]
[1739330592508,15.71330561,195.62,195.61,0.12549]
[1739330593007,15.71330561,195.62,195.56,0.063]
[1739330593210,15.71330561,195.6,195.56,0.063]
[1739330593506,15.71330561,195.63,195.62,0.12549]
[1739330593812,15.71330561,195.64,195.62,0.12549]
[1739330594609,15.74330561,195.67,195.64,0.12549]
[1739330594781,15.71330561,195.66,195.64,0.12549]
[1739330594979,15.71330561,195.66,195.65,0.25098]
[1739330595290,0.03,195.67,195.66,0.37647]
[1739330595504,15.74330561,195.67,195.66,0.37647]
[1739330597590,20.34280561,195.67,195.66,0.12549]
[1739330598108,20.34280561,195.67,195.58,17.28630561]
[1739330598315,15.71330561,195.63,195.58,1.573]
[1739330598511,15.71330561,195.63,195.59,13.91380853]
[1739330598893,15.71330561,195.61,195.59,13.91380853]
[1739330599207,15.71330561,195.6,195.56,0.063]
[1739330599417,15.71330561,195.59,195.56,0.063]
[1739330599718,15.71330561,195.59,195.58,0.37647]
[1739330600093,15.71330561,195.6,195.58,0.37647]
[1739330600394,15.71330561,195.59,195.58,0.37647]
[1739330601688,15.71330561,195.59,195.58,0.12549]
[1739330601887,15.71330561,195.59,195.56,0.063]
[1739330602118,15.71330561,195.57,195.56,0.063]
[1739330603728,29.75929322,195.57,195.56,0.063]
[1739330604018,25.15739322,195.57,195.56,0.063]
[1739330604713,25.15739322,195.58,195.56,0.063]
[1739330605414,25.15739322,195.61,195.57,0.37647]
[1739330605616,25.15739322,195.61,195.58,0.12549]
[1739330606003,25.15739322,195.61,195.59,0.12549]
[1739330606808,25.15739322,195.6,195.56,0.063]
[1739330606985,25.15739322,195.58,195.56,20.063]
[1739330607200,25.15739322,195.58,195.57,0.50196]
[1739330607491,25.15739322,195.58,195.57,0.12549]
[1739330608099,29.75899322,195.58,195.56,0.063]
[1739330608314,25.15739322,195.57,195.56,0.063]
[1739330609791,29.75929322,195.57,195.56,0.063]
[1739330610611,25.15739322,195.57,195.56,0.063]
[1739330610937,25.15739322,195.58,195.56,0.063]
[1739330611090,25.15739322,195.59,195.56,0.18849]
[1739330612116,1.03,195.67,195.57,0.50196]
[1739330612292,25.15739322,195.61,195.57,0.50196]
[1739330612809,25.15739322,195.62,195.57,0.50196]
[1739330613003,25.15739322,195.61,195.57,0.50196]
[1739330613204,25.15739322,195.6,195.57,0.50196]
[1739330614324,25.15739322,195.6,195.57,0.37647]
[1739330614511,25.15739322,195.59,195.57,0.37647]
[1739330617519,25.15739322,195.6,195.59,0.37647]
[1739330619496,29.75859322,195.6,195.56,0.063]
[1739330619696,25.15739322,195.57,195.56,0.063]
[1739330620002,25.15739322,195.57,195.56,0.56496]
[1739330620929,25.15739322,195.58,195.57,0.37647]
[1739330621224,25.15739322,195.59,195.57,0.37647]
[1739330621430,25.15739322,195.58,195.57,0.37647]
[1739330622524,25.15739322,195.58,195.56,0.18849]
[1739330622525,29.75899322,195.58,195.56,0.063]
[1739330622710,25.15739322,195.57,195.56,0.063]
[1739330623628,29.75929322,195.57,195.56,0.063]
[1739330624131,25.15739322,195.57,195.56,0.063]
[1739330626233,29.75929322,195.57,195.56,0.063]
[1739330626434,25.15739322,195.57,195.56,0.063]
[1739330627843,15.71893687,195.57,195.56,0.063]
[1739330629934,20.32083687,195.57,195.56,0.063]
[1739330630535,15.71893687,195.57,195.56,0.063]
[1739330632735,20.32083687,195.57,195.56,0.063]
[1739330638926,49.24563687,195.57,195.49,70.15808716]
[1739330639226,15.71893687,195.5,195.49,0.12549]
[1739330640841,20.32243687,195.5,195.48,0.063]
[1739330641048,15.71893687,195.49,195.48,0.063]
[1739330641640,15.71893687,195.5,195.48,0.063]
[1739330641844,4.6031,195.53,195.48,0.063]
[1739330641845,15.71893687,195.51,195.48,0.063]
[1739330642035,15.71893687,195.49,195.48,0.063]
[1739330645949,15.71893687,195.5,195.48,0.063]
[1739330646127,4.6033,195.52,195.48,0.063]
[1739330646128,15.71893687,195.49,195.48,0.063]
[1739330646725,20.32273687,195.49,195.48,0.063]
[1739330647149,15.71893687,195.49,195.48,0.063]
[1739330647455,15.71893687,195.5,195.48,0.063]
[1739330647629,15.71893687,195.51,195.48,0.063]
[1739330648454,15.71893687,195.5,195.48,0.063]
[1739330648830,15.71893687,195.49,195.48,0.063]
[1739330650156,20.32273687,195.49,195.48,0.063]
[1739330651742,15.71893687,195.49,195.48,0.063]
[1739330652135,20.32273687,195.49,195.48,0.063]
[1739330658947,36.74273687,195.49,195.48,0.0001]
[1739330659550,35.74273687,195.49,195.48,0.0001]
[1739330660635,20.32273687,195.49,195.48,0.0001]
[1739330665652,14.67585436,195.49,195.48,0.0001]
[1739330668058,10.07205436,195.49,195.48,0.0001]
[1739330668782,14.67585436,195.49,195.48,0.0001]
[1739330668994,10.07205436,195.49,195.48,0.12559]
[1739330669164,1.6774,195.56,195.48,0.12559]
[1739330669165,0.03,195.56,195.48,0.12559]
[1739330669482,10.07205436,195.52,195.48,0.12559]
[1739330669855,10.07205436,195.54,195.48,0.12559]
[1739330670055,0.03,195.56,195.48,0.12559]
[1739330670056,10.07205436,195.55,195.5,0.12549]
[1739330670283,14.67445436,195.55,195.5,0.12549]
[1739330671285,0.03,195.56,195.52,0.12549]
[1739330671469,0.03,195.56,195.52,1.75629]
[1739330673465,15.71790955,195.54,195.52,1.75629]
[1739330673660,15.71790955,195.53,195.49,20.0]
[1739330673986,15.71790955,195.54,195.5,0.37647]
[1739330674181,15.71790955,195.55,195.52,0.25098]
[1739330674483,15.74790955,195.56,195.52,0.37647]
[1739330674780,15.71790955,195.55,195.52,0.37647]
[1739330675155,15.71790955,195.54,195.52,0.37647]
[1739330675583,20.32050955,195.54,195.52,0.37647]
[1739330675789,4.6026,195.54,195.52,0.37647]
[1739330676059,4.6024,195.55,195.52,0.37647]
[1739330676475,20.32030955,195.55,195.52,0.37647]
[1739330677185,15.71790955,195.54,195.51,0.063]
[1739330677886,15.71790955,195.55,195.51,0.18849]
[1739330678085,0.03,195.56,195.54,0.37647]
[1739330678291,0.03,195.56,195.54,6.96387]
[1739330678475,0.03,195.56,195.55,15.16813853]
[1739330679188,0.03,195.56,195.55,15.54460853]
[1739330680263,0.03,195.56,195.55,36.37621808]
[1739330680790,0.03,195.56,195.55,31.26251808]
[1739330681666,0.03,195.56,195.55,15.54460853]
[1739330682391,0.03,195.56,195.55,1.6308]
[1739330682565,15.74790955,195.56,195.55,1.6308]
[1739330683393,0.03,195.56,195.55,1.6308]
[1739330685007,15.74790955,195.56,195.51,0.063]
[1739330685289,15.71790955,195.52,195.51,0.063]
[1739330685486,20.32100955,195.52,195.51,0.063]
[1739330685893,15.71790955,195.52,195.51,0.063]
[1739330686214,15.71790955,195.54,195.51,0.063]
[1739330686863,15.71790955,195.55,195.51,0.063]
[1739330687066,15.74790955,195.56,195.51,0.063]
[1739330687283,20.35000955,195.56,195.51,0.063]
[1739330687881,0.03,195.56,195.52,13.91380853]
[1739330688077,0.03,195.56,195.55,0.37647]
[1739330688284,0.03,195.56,195.55,29.63171808]
[1739330691069,0.03,195.56,195.53,23.63300955]
[1739330691300,15.71790955,195.55,195.53,7.9151]
[1739330691473,15.74790955,195.56,195.53,7.9151]
[1739330691796,0.03,195.56,195.53,7.9151]
[1739330692298,15.74790955,195.56,195.53,7.9151]
[1739330693798,0.03,195.56,195.54,0.37647]
[1739330694488,0.03,195.56,195.53,23.75849955]
[1739330694489,0.03,195.56,195.55,29.63171808]
[1739330696094,0.03,195.56,195.55,34.74541808]
[1739330696484,0.03,195.56,195.55,35.74541808]
[1739330696685,1.14,195.6,195.59,33.91380853]
[1739330696885,1.14,195.6,195.59,49.63171808]
[1739330697086,1.14,195.6,195.59,0.50196]
[1739330698897,5.7413,195.6,195.54,15.71790955]
[1739330699108,5.7713,195.6,195.55,13.91380853]
[1739330700798,21.48920955,195.6,195.55,0.50196]
[1739330700998,15.71790955,195.58,195.55,0.37647]
[1739330701904,15.71790955,195.56,195.53,8.04059]
[1739330702202,15.71790955,195.58,195.54,0.37647]
[1739330702388,15.71790955,195.59,195.54,0.37647]
[1739330702789,16.88790955,195.6,195.55,13.53733853]
[1739330702976,1.17,195.6,195.55,13.53733853]
[1739330703179,1.17,195.6,195.57,0.12549]
[1739330703603,1.17,195.6,195.57,13.53733853]
[1739330703990,1.17,195.6,195.59,0.12549]
[1739330704187,1.17,195.6,195.59,13.91380853]
[1739330704391,1.17,195.6,195.59,29.63171808]
[1739330705777,1.17,195.6,195.59,34.74441808]
[1739330706992,1.17,195.6,195.59,29.63171808]
[1739330707503,1.17,195.6,195.59,34.74441808]
[1739330707680,1.17,195.6,195.59,29.63171808]
[1739330710584,1.17,195.6,195.59,34.74441808]
[1739330711197,1.17,195.6,195.59,29.63171808]
[1739330713218,1.17,195.6,195.55,0.063]
[1739330713427,15.71790955,195.58,195.55,0.063]
[1739330713625,15.71790955,195.57,195.55,0.063]
[1739330713918,15.71790955,195.57,195.55,0.31398]
[1739330714102,15.71790955,195.56,195.55,0.063]
[1739330715390,20.32000955,195.56,195.55,0.063]
[1739330715999,15.71790955,195.57,195.55,0.063]
[1739330716401,20.31960955,195.58,195.55,0.063]
[1739330716698,15.71790955,195.58,195.55,0.31398]
[1739330716900,20.31930955,195.59,195.55,0.31398]
[1739330717235,1.17,195.6,195.57,0.25098]
[1739330717592,1.17,195.6,195.58,0.12549]
[1739330717894,1.17,195.6,195.59,0.50196]
[1739330718201,1.17,195.6,195.59,29.63171808]
[1739330719012,1.17,195.6,195.59,20.50196]
[1739330719598,1.17,195.6,195.59,49.63171808]
[1739330719828,1.17,195.6,195.59,54.74441808]
[1739330720422,1.17,195.6,195.59,49.63171808]
[1739330721423,1.17,195.6,195.59,54.74441808]
[1739330725317,1.0446,195.6,195.59,71.46232763]
[1739330725516,1.0446,195.6,195.59,72.46232763]
[1739330725829,1.0446,195.6,195.59,56.74441808]
[1739330726004,1.0446,195.6,195.59,55.74441808]
[1739330727231,1.0446,195.6,195.59,54.74441808]
[1739330727423,1.0446,195.6,195.59,49.63171808]
[1739330727807,1.0446,195.6,195.59,54.74441808]
[1739330728018,1.0446,195.6,195.59,49.63171808]
[1739330728623,1.0446,195.6,195.59,13.91380853]
[1739330728829,1.0446,195.6,195.59,0.50196]
[1739330730728,1.0446,195.6,195.59,13.91380853]
[1739330731025,1.0446,195.6,195.59,29.63171808]
[1739330731615,1.0446,195.6,195.59,34.74441808]
[1739330732927,1.0446,195.6,195.59,58.68932763]
[1739330733124,1.0446,195.6,195.59,60.35342763]
[1739330733325,1.0446,195.6,195.59,44.63551808]
[1739330734028,1.0446,195.6,195.59,60.35342763]
[1739330734407,0.03,195.67,195.63,20.50196]
[1739330734639,0.03,195.67,195.66,13.91380853]
[1739330735920,0.03,195.67,195.66,34.74261808]
[1739330736120,0.03,195.67,195.66,29.63171808]
[1739330736929,0.03,195.67,195.66,34.74261808]
[1739330737332,0.03,195.67,195.66,29.63171808]
[1739330737926,0.03,195.67,195.66,13.91380853]
[1739330740832,0.03,195.69,195.68,20.50196]
[1739330741044,0.03,195.76,195.75,0.25098]
[1739330741529,15.71790955,195.86,195.79,0.25098]
[1739330741720,15.71790955,195.86,195.79,29.38073808]
[1739330742237,15.71790955,195.86,195.82,0.25098]
[1739330742527,15.74790955,195.87,195.83,0.25098]
[1739330743750,15.71790955,195.86,195.83,0.25098]
[1739330743945,15.71790955,195.86,195.79,15.71790955]
[1739330744238,15.71790955,195.83,195.76,15.71790955]
[1739330744533,15.71790955,195.83,195.77,13.91380853]
[1739330744833,15.71790955,195.83,195.77,29.63171808]
[1739330745030,15.71790955,195.84,195.77,29.63171808]
[1739330745340,15.71790955,195.86,195.82,0.25098]
[1739330745531,15.74790955,195.87,195.82,0.25098]
[1739330746926,15.71790955,195.86,195.82,0.25098]
[1739330748038,20.31300955,195.86,195.82,0.25098]
[1739330748235,15.71790955,195.84,195.82,0.25098]
[1739330748644,15.71790955,195.85,195.82,0.25098]
[1739330749845,15.71790955,195.85,195.78,15.71790955]
[1739330750059,15.71790955,195.85,195.79,13.91380853]
[1739330750266,0.03,195.87,195.83,0.50196]
[1739330750427,0.03,195.87,195.85,15.71790955]
[1739330750632,0.03,195.87,195.86,0.25098]
[1739330751464,0.03,195.87,195.86,29.63171808]
[1739330752229,0.03,195.87,195.79,1.5057]
[1739330752448,15.71790955,195.84,195.79,1.5057]
[1739330752634,15.71790955,195.83,195.77,15.71790955]
[1739330752834,15.71790955,195.83,195.78,13.91380853]
[1739330753050,15.71790955,195.84,195.78,13.91380853]
[1739330753230,15.71790955,195.82,195.78,0.50196]
[1739330753558,0.03,195.87,195.73,73.69964342]
[1739330753559,15.71790955,195.79,195.73,73.69964342]
[1739330753784,20.31520955,195.77,195.73,73.69964342]
[1739330753963,20.31520955,195.77,195.74,0.50196]
[1739330754138,4.5973,195.77,195.74,0.50196]
[1739330754341,20.31520955,195.77,195.74,0.50196]
[1739330754541,1.0,195.86,195.8,13.91380853]
[1739330754542,15.71790955,195.86,195.8,13.91380853]
[1739330754741,4.5951,195.86,195.8,29.63171808]
[1739330755239,20.31300955,195.86,195.8,29.63171808]
[1739330755758,4.5951,195.86,195.83,0.25098]